{"text_format":"1","workbook":"xlsx","n_sheets":4,"sheets":["Data","Hoja3","Hoja1","Hoja4"],"not_rendered":{"charts":6,"images":0,"macros":1,"external_links":0,"defined_names":1,"comments":0,"pivot_tables":6},"unopened":[],"bounds":{"document_bytes":16777216,"sheet_cells":100000,"rows_first":2000,"rows_last":500,"rows_between":2000,"halvings":0,"cell_chars":16384,"cell_head_chars":4096},"cells_cut":0,"cells_raw":0,"read":"whole","date_system":"1900"}

{"sheet":"Data","index":0,"n_rows":283,"n_cols":30,"rows_kept":283,"cut":false,"hidden":false,"merged":[]}
["Nº","Fecha de reporte",null,"Sexo","Edad","Cond","Grupo Ocup.","GO","Departamento","Area de trabajo","Lugar del accidente","Fecha de accidente","Año accidente","Hora de accidente","Turno","Fisico","Quimico","Mecanico","Alergico","Cancerigeno","Psicosocial","Tipo de Accidente","Descripción","Ubic. en el cuerpo","Medidas de control","sema","mes","3 meses","6 meses","Observacion"]
[1,"2002-01-02",null,"F",44,"Nombrado","Tec. Laboratorio","Técnico","Laboratorio","Lab. Emergencia","SOP","2001-12-29",{"$f":"YEAR(L2)","v":2001},"04:30 p.m.","Dia",1,null,null,null,null,null,"Pinchadura","Pinchadura en indice derecho, aguja vacutainer","Mano derecha","medicina preventiva"]
[2,"2002-01-09",null,"M",40,null,"Tec. Enfermeria","Técnico","Cons. Externos","Cons. Externos","Cons. Externos","2002-01-09",{"$f":"YEAR(L3)","v":2002},"11:00 a.m.","Dia",1,null,null,null,null,null,"Pinchadura","Pinchadura en indice derecho, aguja hipodermica","Mano derecha","medicina preventiva"]
[3,"2002-01-14",null,"F",35,null,"Oper. Limpieza","Service Limpieza","Laboratorio","Lab. Central","Lab. Central","2002-01-14",2002,"07:40 a.m.","Dia",1,null,null,null,null,null,"Pinchadura","Pinchadura en en pulgar derecho con alfiler","Mano derecha","………"]
[4,"2002-02-05",null,"F",25,null,"Oper. Limpieza","Service Limpieza","Gineco Obstetricia","Serv. Hospitalizaciòn","Botadero de mantenimiento",null,2002,"07:15 a.m.","Dia",1,null,null,null,null,null,"Pinchadura","Pinchazo en pierna derecha cara anterior","pierna derecha","medicina preventiva"]
[5,"2002-02-08",null,"F",23,"Interno","Int. Medicina","Estudiante","Gineco Obstetricia","Serv. 2","SOP","2002-01-26",2002,"11:00 p.m.","Noche",1,null,null,null,null,null,"Pinchadura","Pinchadura en pulgar derecho con aguja de sutura","Mano derecha","medicina preventiva"]
[6,"2002-02-18",null,"M",24,"Interno","Int. Medicina","Estudiante","Gineco Obstetricia","Serv. \"A\"","SOP","2002-02-16",2002,"07:12 a.m.","Dia",1,null,null,null,null,null,"Pinchadura","Pinchadura meñique derecho con aguja curva","Mano derecha","medicina preventiva"]
[7,"2002-02-22",null,"F",33,null,"Oper. Limpieza","Service Limpieza","Neonatología","Neonatologia","Int-II","2002-02-21",2002,"02:30 p.m.","Dia",1,null,null,null,null,null,"Pinchadura","Pinchadura meñique derecho con aguja de bolsa roja","Mano derecha","esssalud"]
[8,"2002-02-24",null,"F",26,"Interno","Int. Obstetricia","Estudiante","Gineco Obstetricia","Medicina Fetal","Medicina Fetal","2002-02-24",2002,"17:00 p.m.","Noche",1,null,null,null,null,null,"Pinchadura","Pinchadura dedo izquierdo con aguja de scalp","Mano izquierda","."]
[9,"2002-03-06",null,"M",25,null,"Oper. Limpieza","Service Limpieza","Gineco Obstetricia","Serv. 3","Serv 3","2002-03-05",2002,"10:30 a.m.","Noche",1,null,null,null,null,null,"Pinchadura","Pinchadura dedo indice derecho con aguja hipodermica","Mano derecha","medicina preventiva"]
[10,"2002-03-13",null,"F",21,null,"Oper. Limpieza","Service Limpieza","Neonatología","Vacunas","Vacunas","2002-03-13",2002,"02:30 p.m.","Dia",1,null,null,null,null,null,"Pinchadura","Pinchadura rodilla derecho con aguja de bolsa roja","pierna derecha","."]
[11,"2002-04-12",null,"F",27,null,"Tec. Enfermeria","Técnico","Cons. Externos","Cons. Externos","C.oncologia","2002-04-12",2002,"11:30 a.m.","Dia",1,null,null,null,null,null,"Pinchadura","Pinchadura pulgar derecho con bisturi","Mano derecha","medicina preventiva","no rea"]
[12,"2002-04-20",null,"M",33,"Interno","Int. Medicina","Estudiante","Gineco Obstetricia","Serv. 1","C. Obstetrico","2002-04-20",2002,"03:20 a.m.","Noche",1,null,null,null,null,null,"Salpicadura","salpicadura de sangre en ojo derecho","ojo derecho","medicina preventiva"]
[13,"2002-04-20",null,"M",23,"Interno","Int. Medicina","Estudiante","Gineco Obstetricia","Serv. 1","SOP","2002-04-19",2002,"11:00 p.m.","Noche",null,null,1,null,null,null,"Corte","corte dedo medio izq con bisturi","Mano izquierda","."]
[14,"2002-05-09",null,"M",null,null,"Oper. Limpieza","Service Limpieza","Gineco Obstetricia","SOP","A.recuperacion","2002-05-07",2002,"10:30 a.m.","Noche",1,null,null,null,null,null,"Pinchadura","Pinchadura rodilla post. izquierda con aguja de bolsa roja","pierna izquierda","esssalud"]
[15,"2002-05-29",null,"F",32,null,"Oper. Limpieza","Service Limpieza","Gineco Obstetricia","Serv. \"A\"","Serv. \"C\"","2002-05-29",2002,null,"Dia",1,null,null,null,null,null,"Pinchadura","Pinchadura rodilla derecha parte lateral con abocat","pierna derecha","esssalud"]
[16,"2002-06-05",null,"F",36,null,"Obstetricia","Profesional","Gineco Obstetricia","Serv. 3","Serv. 3","2002-06-05",2002,"06:45 a.m.","Dia",1,null,null,null,null,null,"Pinchadura","Pincahdura indice izquierdo con aguja recapsular","mano izquierda","medicina preventiva","hiv(-)Hep?"]
[17,"2002-06-27",null,"F",47,null,"Tec. Enfermeria","Técnico","Cons. Externos","Cons. Externos","Pediatria","2002-06-27",2002,"07:00 a.m.","Dia",1,null,null,null,null,null,"Caida","caida, golpe de columna","espalda","medico de personal","no Rx"]
[18,"2002-07-08",null,"M",33,null,"Med. Residente","Profesional","Gineco Obstetricia","C. Obstetrico","C. Obstetrico","2002-07-02",2002,"11:00 p.m.","Noche",1,null,null,null,null,null,"Salpicadura","contacto con sangre de pcte hiv(+)","mano ","medicina preventiva","no realizo"]
[19,"2002-07-31",null,"F",26,"Interno","Int. Obstetricia","Estudiante","Gineco Obstetricia","Serv. 3","Serv. 3","2002-07-30",2002,"03:00 p.m.","Dia",1,null,null,null,null,null,"Pinchadura","Pinchadura indice derecho con aguja hiv(+)","Mano derecha","medicina preventiva"]
[20,"2002-08-02",null,"F",36,null,"Medico Pediatra","Profesional","Neonatología","Neonatologia","UCIN","2002-08-01",2002,"04:00 p.m.","Dia",1,null,null,null,null,null,"Pinchadura","Pinchadura indice izq. Con aguja tuberculina","Mano izquierda","medicina preventiva"]
[21,"2002-08-16",null,"M",42,null,"Tec. Enfermeria","Técnico","Gineco Obstetricia","C. Obstetrico","Serv 2","2002-08-16",2002,"09:15 a.m.","Dia",1,null,null,null,null,null,"Pinchadura","Pinchadura pulgar izq. Con aguja incrustada en botella de suero","Mano izquierda","medicina preventiva"]
[22,"2002-08-19",null,"F",36,null,"Obstetricia","Profesional","Gineco Obstetricia","Emergencia","Emergencia","2002-08-17",2002,"18.00 p.m.","Dia",1,null,null,null,null,null,"Pinchadura","Pinchadura de dedo medio izq. con abocat","Mano izquierda","medicina preventiva"]
[23,"2002-08-20",null,"M",23,"Interno","Int. Biologia","Estudiante","Laboratorio","Lab. Genetica","Patologia","2002-08-20",2002,"15:00 p.m.","Dia",1,null,null,null,null,null,"Pinchadura","Pinchadura del dedo medio izq","Mano izquierda","medicina preventiva"]
[24,"2002-09-11",null,"F",37,"Nombrado","Tec. Laboratorio","Técnico","Laboratorio","anat-patologia","Patologia",null,2002,"09:10 a.m.","Dia",1,null,null,null,null,null,"Corte","corte pulgar derecho navaja microtono","Mano derecha","esssalud"]
[25,"2002-11-12",null,"F",45,null,"Obstetricia","Profesional","Administración","Docencia","Pasadizo Adm",null,2002,null,"Dia",null,null,1,null,null,null,"Caida","caida por piso humedo","Todo el cuerpo"]
[26,"2002-11-14",null,"F",21,null,"Estud. Obstetricia","Estudiante","Gineco Obstetricia","C. Obstetrico","C. Obstetrico","2003-11-07",2003,null,"Noche",1,null,null,null,null,null,"Pinchadura","pinchadura de dedo pulgar","Mano izquierda","medicina preventiva"]
[27,"2002-11-18",null,"F",27,null,"Tecnol. Medico","Profesional","Laboratorio","Laboratorio","Patologia","2003-11-18",2003,"10:00 p.m.","Noche",1,null,null,null,null,null,"Corte","corte pulgar derecho navaja microtono","Mano derecha","esssalud"]
[28,"2002-11-26",null,"M",55,"Nombrado","Tec. Administrativo","Técnico","Administración","Contabilidad","Pasadizo Adm","2003-11-26",2003,"07:10 a.m.","Dia",null,null,1,null,null,null,"Caida","caida por piso humedo y encerado","Todo el cuerpo","Medico de personal"]
[1,"2003-02-11",null,"M",25,"Interno","Int. Medicina","Estudiante","Gineco Obstetricia","Serv. 2","SOP","2003-02-11",2003,"09:20 a.m.","Dia",1,null,null,null,null,null,"Corte","Corte con tijera de campo en Dedo indice izq.","Mano Izquierdo","Medicina preventiva"]
[{"$f":"+A30+1","v":2},"2003-02-18",null,"M",33,null,"Med. Residente 3","Profesional","Gineco Obstetricia","SOP","SOP","2003-02-07",2003,"17:00:00","Dia",1,null,null,null,null,null,"Pinchadura","Pinchadura con aguja de sutura en Dedo mayor","Mano Derecha","…………………….."]
[{"$f":"+A31+1","v":3},"2003-03-04",null,"F",29,"Interno","Int. Medicina","Estudiante","Gineco Obstetricia","Serv. \"A\"","SOP","2003-02-28",2003,"05:00 p.m.","Dia",1,null,null,null,null,null,"Salpicadura","Salpicadura de gota de sangre en Ojo derecho pac. RPRL(+)","Derecho","Medicina preventiva"]
[{"$f":"+A34+1","v":5},"2003-03-15",null,"M",25,"Interno","Int. Tecnol.  Medica","Estudiante","Laboratorio","Bco. Sangre","Bco. Sangre","2003-03-14",2003,"10:35 a.m.","Dia",1,null,null,null,null,null,"Pinchadura","En parte inf. Del antebrazo izq. De niña con D/C HIV","Brazo Izquierdo","Medicina preventiva","Toma Antiviral"]
[{"$f":"+A32+1","v":4},"2003-04-23",null,"F",30,null,"Oper. Limpieza","Service Limpieza","Gineco Obstetricia","Serv. 4","SS.HH","2003-04-23",2003,"10:40 a.m.","Dia",1,null,null,null,null,null,"Pinchadura","Dedo meñique derecho","Mano Derecha","Medicina preventiva"]
[{"$f":"+A33+1","v":6},"2003-06-14",null,"M",28,"Interno","Int. Medicina","Estudiante","Gineco Obstetricia","Serv. \"A\"","SOP","2003-06-13",2003,"05:00 p.m.","Dia",1,null,null,null,null,null,"Pinchadura","Dedo indice con aguja de sutura. Pac. Con VIH(+)","Manon Izquierda","Sidovidina AZT/M.Prev",null,null,null,null,"Pcte. HIV+"]
[7,"2003-06-18",null,"F",22,"Interno","Int. Obstetricia","Estudiante","Gineco Obstetricia","C. Obstetrico",{"$f":"+J36","v":"C. Obstetrico"},"2003-04-01",2003,null,"Dia",1,null,null,null,null,null,"Pinchadura","Dedo indice y pulgar","Mano Izquierda","Medicina preventiva"]
[8,"2003-07-02",null,"F",38,null,"Obstetricia","Profesional","Gineco Obstetricia","Serv. 1","Serv. 1","2003-06-30",2003,null,"Dia",1,null,null,null,null,null,"Pinchadura","Dedo anular derecho con aguja ","Mano Derecha","Medicina preventiva"]
[9,"2003-07-12",null,"M",29,"Interno","Int. Tecnol.  Medica","Estudiante","Laboratorio","Lab. Emergencia","Lab. Emergencia","2003-07-12",2003,"09:00 a.m.","Dia",1,null,null,null,null,null,"Corte","Corte contubo de ensayo en Dedo anular derecho ","Mano Derecha","Medicina preventiva",null,null,null,null,"Pcte. HIV+"]
[10,"2003-07-30",null,"F",38,null,"Tec. Enfermeria","Técnico","Gineco Obstetricia","C. Obstetrico",{"$f":"+J39","v":"C. Obstetrico"},"2003-07-26",2003,"09:00 a.m.","Dia",1,null,null,null,null,null,"Pinchadura","Dedo medio derecho","Mano Derecha","Medicina preventiva"]
[11,"2003-09-09",null,"F",44,null,"Obstetricia","Profesional","Gineco Obstetricia","C. Obstetrico",{"$f":"+J40","v":"C. Obstetrico"},"2003-09-09",2003,"07:12 p.m.","Noche",1,null,null,null,null,null,"Salpicadura","De sangre y Liquido anmiotico en Cara","Cara","Medicina preventiva"]
[12,"2003-09-30",null,"F",47,null,"Tec. Nutricion","Técnico","Administración","Nutricion","Nutricion","2003-09-30",2003,null,"Dia",1,null,null,null,null,null,"Quemadura","Con agua hirviendo en los Pies","Ambos","Curacion de emergencia"]
[13,"2003-10-14",null,"M",24,null,"Oper. Limpieza","Service Limpieza","Laboratorio","Cochero","Laboratorio","2003-09-26",2003,"02:15 p.m.","Dia",1,null,null,null,null,null,"Pinchadura","En muñeca de brazo derecho con aguja de bolsa roja","Brazo Derecho","Medicina preventiva",null,null,null,null,"No Reactivo"]
[14,"2003-10-14",null,"F",33,null,"Oper. Limpieza","Service Limpieza","Gineco Obstetricia","Serv. 2","Serv. 2","2003-10-09",2003,"01:30 p.m.","Dia",1,null,null,null,null,null,"Pinchadura","En Pierna izq. Con aguja de bolsa roja","Pierna Izquierda","Medicina preventiva"]
[15,"2003-10-22",null,"F",30,"Interno","Int. Tecnol.  Medica","Estudiante","Laboratorio","Lab. Genetica","Lab. Genetica","2004-10-21",2004,"04:00 p.m.","Dia",1,null,null,null,null,null,"Pinchadura","Con aguja Hipodermica, en Dedo indice","Mano Izquierda","Medicina preventiva"]
[16,"2003-10-28",null,"M",22,null,"Oper. Limpieza","Service Limpieza","Neonatología","Lunero","Neonatología","2005-10-26",2005,"02:45 p.m.","Dia",1,null,null,null,null,null,"Pinchadura","Con aguja Hipodermica, en Dedo Meñique","Mano derecha","Medicina preventiva"]
[1,"2004-01-02",null,"F",42,null,"Tec. Enfermeria","Técnico","Neonatología","Aten. Inmediata","Pasadizo","2004-01-02",2004,"08:29 a.m.","Dia",1,null,null,null,null,null,"Caida","Cuerpo completo","Todo el cuerpo","Medico Personal"]
[2,"2004-01-19",null,"F",29,null,"Oper. Limpieza","Service Limpieza","Gineco Obstetricia","Monoblock","Serv. \"C\"","2004-01-19",2004,"06:45 a.m.","Dia",1,null,null,null,null,null,"Pinchadura","Rodilla","Derecha","Medicina preventiva"]
[3,"2004-01-26",null,"M",42,null,"Tec. Mantenimiento","Técnico","Administración","Lavanderia","Lavanderia","2004-01-26",2004,"09:00 a.m.","Dia",1,null,null,null,null,null,"Pinchadura","Dedo meñique","Mano Izquierda","Medicina preventiva"]
[4,"2004-05-12",null,"F",43,null,"Obstetricia","Profesional","Gineco Obstetricia","C. Obstetrico","C. Obstetrico","2004-05-12",2004,"01:50 a.m.","Noche",1,null,null,null,null,null,"Pinchadura","Dedo medio ","Mano Derecha","Medivina Preventiva"]
[5,"2004-05-13",null,"F",21,null,"Estud. Laboratorio","Estudiante","Laboratorio","Laboratorio","Serv. 4","2004-05-13",2004,"11:00 a.m.","Dia",1,null,null,null,null,null,"Pinchadura","Dedo Indice","Mano Izquierda","Medicina Preventiva"]
[6,"2004-05-26",null,"F",51,null,"Enfermeria","Profesional","Neonatología","UCIN-C","UCIN-C","2004-05-24",2004,"11:00 a.m.","Dia",1,null,null,null,null,null,"Pinchadura","Dedo Indice","Mano Izquierda","Medicina preventiva"]
[7,"2004-06-04",null,"F",33,null,"Enfermeria","Profesional","Neonatología","UCIN-C","UCIN-C","2004-06-04",2004,"11:30 a.m.","Dia",1,null,null,null,null,null,"Pinchadura","Dedo Indice","Izquierda","Medicina preventiva"]
[8,"2004-06-05",null,"F",44,null,"Tec. Mantenimiento","Técnico","Gineco Obstetricia","Lavanderia","ADO","2004-06-05",2004,"07:00 a.m.","Dia",1,null,null,null,null,null,"Corte","Pie","Izquierda","Medicina preventiva"]
[9,"2004-06-11",null,"F",23,"Interno","Int. Medicina","Estudiante","Gineco Obstetricia","Serv. \"B\"","SOP","2004-06-11",2004,"01:30 p.m.","Dia",1,null,null,null,null,null,"Pinchadura","Dedo Meñique","Izquierda","Medicina preventiva"]
[10,"2004-06-11",null,"F",47,null,"Tec. Enfermeria","Técnico","Neonatología","Neonatologia","Pasadizo","2004-06-11",2004,"07:00 a.m.","Dia",1,null,null,null,null,null,"Caida","Coxis","total","Medicina preventiva"]
[11,"2004-06-14",null,"F",57,null,"Tec. Enfermeria","Técnico","Gineco Obstetricia","Serv. 4","Pasadizo","2004-06-14",2004,"08:00 a.m.","Dia",1,null,null,null,null,null,"Caida","Cabeza","posterior-Occipital","Medico Personal"]
[12,"2004-06-14",null,"F",45,null,"Enfermeria","Profesional","Neonatología","Neonatologia","Pasadizo","2004-06-14",2004,"09:30 a.m.","Dia",1,null,null,null,null,null,"Caida","Brazo","Izquierda","Medicina preventiva"]
[13,"2004-06-18",null,"M",42,null,"Obstetricia","Profesional","Gineco Obstetricia","Serv. \"B\"","Pasadizo","2004-06-18",2004,"07:00 a.m.","Dia",1,null,null,null,null,null,"Caida","Pierna","Derecha","ESSALUD"]
[14,"2004-06-18",null,"F",60,null,"Tec. Enfermeria","Técnico","Neonatología","Neonatologia","Escaleras","2004-06-18",2004,"06:20 p.m.","Dia",1,null,null,null,null,null,"Caida","Rotula","Izquierda","ESSALUD"]
[15,"2004-06-18",null,"F",39,null,"Enfermeria","Profesional","Neonatología","UCIN-C","Pasadizo","2004-06-18",2004,"07:00 p.m.","Noche",1,null,null,null,null,null,"Caida","Cara","Derecho"]
[16,"2004-06-25",null,"F",37,null,"Enfermeria","Profesional","Neonatología","UCIN-A","UCIN-A","2004-06-25",2004,"  03:36 a.m.","Dia",1,null,null,null,null,null,"Pinchadura","Dedo Indice","Derecho","Medicina preventiva"]
[17,"2004-07-16",null,"F",33,"Nombrado","Tec. Laboratorio","Técnico","Laboratorio","Bioquimica","Laboratorio","2004-07-16",2004,"04:00 p.m.","Dia",1,null,null,null,null,null,"Corte","Mano","Izquierda","ESSALUD"]
[18,"2004-07-26",null,"M",22,null,"Oper. Limpieza","Service Limpieza","Gineco Obstetricia","Cochero","Serv. \"D\"","2004-07-26",2004,"07:30 a.m.","Dia",1,null,null,null,null,null,"Pinchadura","Mano","Derecha","Medicina preventiva"]
[19,"2004-08-09",null,"F",55,null,"Obstetricia","Profesional","Gineco Obstetricia","Serv. 4","Serv. 4","2004-07-31",2004,"10:30 a.m.","Dia",1,null,null,null,null,null,"Pinchadura","Pulgar","Izquierda","Medicina preventiva"]
[20,"2004-08-19",null,"M",36,null,"Tec. Mantenimiento","Técnico","Administración","Lavanderia","Lavanderia","2005-08-19",2005,"08:00 a.m.","Dia",1,null,null,null,null,null,"Pinchadura","Brazo","Izquierdo","Medicina preventiva"]
[21,"2004-08-30",null,"F",25,"Interno","Int. Obstetricia","Estudiante","Gineco Obstetricia","C. Obstetrico","C. Obstetrico","2005-08-30",2005,"07:00 a.m.","Dia",1,null,null,null,null,null,"Salpicadura","De sangre en atención de parto","Cara","Medicina preventiva","Muestra HIV"]
[22,"2004-08-31",null,"F",37,null,"Obstetricia","Profesional","Gineco Obstetricia","C. Obstetrico","C. Obstetrico","2005-08-31",{"$f":"YEAR(L67)","v":2005},"19:00 p.m.","Noche",null,null,null,null,1,null,"Salpicadura","De sangre en atención de parto","Cara","Medicina preventiva"]
[23,"2004-09-08",null,"F",31,null,"Tec. Enfermeria","Técnico","Gineco Obstetricia","UCI Adultos","UCI Adultos","2004-09-08",2004,"12:00 p.m.","Dia",1,null,null,null,null,null,"Pinchadura","Mano","Derecha","Medicina preventiva","Muestra HIV"]
[24,"2004-09-13",null,"M",37,null,"Tec. Mantenimiento","Técnico","Administración","Lavanderia","Lavanderia","2004-09-13",2004,"08:40 a.m.","Dia",1,null,null,null,null,null,"Pinchadura","Mano",null,"Medicina preventiva","Muestra HIV"]
[25,"2004-09-16",null,"F",25,"Interno","Int. Medicina","Estudiante","Gineco Obstetricia","Serv. \"C\"","Serv. \"C\"","2004-09-01",2004,"09:00 a.m.","Dia",null,null,null,1,null,null,"Contacto","Reacción alergica al Gluconato","Brazo","Medicina preventiva"]
[26,"2004-09-16",null,"M",25,null,"Oper. Limpieza","Service Limpieza","Gineco Obstetricia","Serv. \"D\"","Serv. \"D\"","2004-09-16",2004,"01:40 p.m.","Dia",1,null,null,null,null,null,"Pinchadura","con aguja de bolsa roja",null,"Medicina preventiva"]
[27,"2004-09-16",null,"M",22,null,"Oper. Limpieza","Service Limpieza","Gineco Obstetricia","Cochero","Serv. \"D\"","2004-09-16",2004,"01:40 p.m.","Dia",1,null,null,null,null,null,"Pinchadura","con aguja de bolsa roja","Mano derecha","Medicina preventiva"]
[28,"2004-09-21",null,"M",24,"Interno","Int. Obstetricia","Estudiante","Gineco Obstetricia","C. Obstetrico","C. Obstetrico","2004-09-19",2004,"02:30 a.m.","Noche",1,null,null,null," ",null,"Salpicadura","De sangre en atención de parto","Ojo Izquierdo","Medicina preventiva","Muestra HIV"]
[29,"2004-10-01",null,"M",21,null,"Oper. Limpieza","Service Limpieza","Gineco Obstetricia","Uci Materno","Uci Materno","2005-10-01",2005,"09:30 a.m.","Dia",1,null,null,null,null,null,"Pinchadura","Dedo Medio","Derecho","Medicina preventiva","Muestra HIV","$$"]
[30,"2004-10-04",null,"F",25,"Interno","Int. Medicina","Estudiante","Gineco Obstetricia","SOP","SOP","2005-10-04",2005,"12:30 p.m.","Dia",1,null,null,null,null,null,"Corte","Con Bisturi en cesarea, dedo ","Mano","Medicina preventiva"]
[31,"2004-10-07",null,"M",28,"Interno","Int. Medicina","Estudiante","Gineco Obstetricia","SOP","SOP","2005-10-06",2005,"06:00 p.m.","Dia",1,null,null,null,null,null,"Pinchadura","Al suturar cesarea, dedo","Mano","Medicina preventiva"]
[32,"2004-10-20",null,"F",58,null,"Tec. Enfermeria","Técnico","Laboratorio","Serv. 4","Lab. Inmunologia","2005-10-16",2005,"06:00 p.m.","Dia",null,null,1,null,null,null,"Corte","Con trozos de vidrio","Mano","Medicina preventiva"]
[33,"2004-10-20",null,"F",58,null,"Tec. Enfermeria","Técnico","Gineco Obstetricia","Serv. 4","Serv.4","2005-07-08",2005,"11:00 a.m.","Dia",null,null,null,null,null,null,"Caida","Trasladando paciente","espalda","Medicina preventiva"]
[34,"2004-11-10",null,"F",19,null,"Estud. Obstetricia","Estudiante","Gineco Obstetricia","C. Obstetrico","C. Obstetrico","2005-11-10",2005,"11:50 a.m.","Dia",1,null,null,null,null,null,"Salpicadura","De sangre a los ojos","Cara","Medicina preventiva"]
[35,"2004-11-15",null,"F",50,null,"Medico Patologo","Profesional","Laboratorio","Patología","Patología","2005-11-13",2005,"05:00 p.m.","Dia",1,null,null,null,null,null,"Corte","Con cuchillo del Pulgar","Izquierdo","Medicina preventiva"]
[36,"2004-11-24",null,"F",25,"Interno","Int. Medicina","Estudiante","Neonatología","Aten. Inmediata","A. Inmediata","2005-11-24",2005,"03:00 a.m.","Noche",1,null,null,null,null,null,"Pinchadura","Con aguja, en dedo medio","Izquierda","Medicina preventiva"]
[37,"2004-11-29",null,"F",22,"Interno","Int. Obstetricia","Estudiante","Gineco Obstetricia","C. Obstetrico","C. Obstetrico","2005-11-29",2005,"07:50 a.m.","Dia",1,null,null,null,null,null,"Pinchadura","Mano","Izquierda","Medicina preventiva","Muestra HIV"]
[38,"2004-12-07",null,"M",40,null,"Med. Residente","Profesional","Gineco Obstetricia","C. Obstetrico","C. Obstetrico","2005-12-07",2005,"01:30 p.m.","Dia",1,null,null,null,null,null,"Pinchadura","Dedo Indice","Izquierda","Medicina preventiva","Muestra HIV"]
[39,"2004-12-13",null,"F",51,null,"Residente Genetica","Profesional","Laboratorio","Patología","Patologia","2005-12-13",2005,"10:15:00","Dia",1,null,null,null,null,null,"Corte","Con bisturi en pulgar ","Izquierdo","Medicina preventiva"]
[40,"2004-12-20",null,"F",33,null,"Enfermeria","Profesional","Neonatología","Uci Neonatal","Uci Neonatal","2005-12-12",2005,"01:00 a.m.","Noche",null,null,1,null,null,null,"Pinchadura","Con aguja","Muslo","Medicina preventiva"]
[41,"2004-12-29",null,"F",24,"Interno","Int. Obstetricia","Estudiante","Gineco Obstetricia","C. Obstetrico","C. Obstetrico","2005-12-20",2005,"11:00 a.m.","Noche",1,null,null,null,null,null,"Pinchadura","Con aguja al suturar, en dedo indice","Izquierdo","Medicina preventiva","Muestra HIV"]
[1,"2005-01-01",null,"F",null,null,"Tec. Enfermeria","Técnico","Neonatología","Neonatologia","Neonatología Int. I","2005-01-01",2005,"7:00pm","Dia",1,null,null,null,null,null,"Caida","Trasladando paciente","Todo el cuerpo","Medicina preventiva"]
[2,"2005-01-14",null,"F",23,null,"Oper. Limpieza","Service Limpieza","Gineco Obstetricia","Serv. \"D\"","Serv. \"D\"","2005-01-14",2005,"12:50 p.m.","Dia",1,null,null,null,null,null,"Pinchadura","En Mano. Con aguja de bolsa roja","Mano","Medicina preventiva"]
[3,"2005-02-01",null,"F",22,"Interno","Int. Obstetricia","Estudiante","Gineco Obstetricia","C. Obstetrico","C. Obstetrico","2005-02-01",2005,"01:00 p.m.","Dia",null,null,1,null,null,null,"Pinchadura","Dedo Medio","Izquierda","Medicina preventiva"]
[4,"2005-02-04",null,"F",45,null,"Obstetricia","Profesional","Gineco Obstetricia","C. Obstetrico","C. Obstetrico","2005-02-04",2005,"06:00 a.m.","Noche",1,null,null,null,null,null,"Pinchadura","Dedo Indice","Mano","Medicina preventiva"]
[5,"2005-03-09",null,"F",25,"Interno","Int. Medicina","Estudiante","Gineco Obstetricia","Serv. \"D\"","Sala Partos","2005-02-24",2005,"23.35 p.m.","Noche",1,null,null,null,null,null,"Salpicadura","De liquido amniotico, en ceja derecha","Cara","Medicina preventiva"]
[6,"2005-03-17",null,"M",20,null,"Oper. Limpieza","Service Limpieza","Laboratorio","Cochero","Laboratorio","2005-01-17",2005,"15.00 p.m.","Dia",1,null,null,null,null,null,"Salpicadura","Al Ojo Izquierdo","Cara","Medicina preventiva"]
[7,"2005-03-21",null,"F",21,"Interno","Int. Medicina","Estudiante","Gineco Obstetricia","C. Obstetrico","C. Obstetrico","2005-03-21",2005," 01:00 a.m.","Noche",1,null,null,null,null,null,"Salpicadura","De liquido amniotico.","Cara","medicina preventiva"]
[8,"2005-03-23",null,"F",24,"Interno","Int. Medicina","Estudiante","Gineco Obstetricia","C. Obstetrico","C. Obstetrico","2005-03-20",2005,"02.00 p.m.","Dia",1,null,null,null,null,null,"Pinchadura","Dedo Indice","Izquierda","Medicina preventiva"]
[9,"2005-03-23",null,"F",23,"Interno","Int. Medicina","Estudiante","Gineco Obstetricia","SOP","SOP","2005-03-19",2005,"11.00 p.m.","Noche",1,null,null,null,null,null,"Pinchadura","Dedo Indice","Derecho","medicina preventiva"]
[10,"2005-03-28",null,"M",37,null,"Oper. Limpieza","Service Limpieza","Mantenimiento","Nutricion","Nutricion","2005-03-28",2005,"10.00 a.m.","Dia",1,null,null,null,null,null,"Caida/Corte","Dedos Indice y anular","Mano Izquierda","Medicina Preventiva"]
[11,"2005-05-31",null,"F",40,null,"Enfermeria","Profesional","Neonatología","Uci Neonatal","UCIN A","2005-05-30",2005,"15.30 p.m.","Dia",1,null,null,null,null,null,"Pinchadura","Dedo Pulgar","Mano Izquierda","Medicina Preventiva"]
[12,"2005-06-07",null,"M",29,null,"Med. Residente","Profesional","Gineco Obstetricia","C. Obstetrico","C. Obstetrico","2005-06-05",2005,"17.00 p.m.","Dia",1,null,null,null,null,null,"Pinchadura","Dedo Indice","Derecho","Medicina Preventiva"]
[13,"2005-06-08",null,"F",29,null,"Enfermeria","Profesional","Gineco Obstetricia","Recuperación","Recuperacion","2005-06-08",2005,"12.15 p.m.","Dia",1,null,null,null,null,null,"Pinchadura","Dedo Indice","Mano","Medicina Preventiva"]
[14,"2005-06-10",null,"F",40,null,"Tec. Enfermeria","Técnico","Neonatología","Uci Neonatal","Uci Neonatal","2005-06-10",2005,"09:00 a.m.","Dia",1,null,null,null,null,null,"Pinchadura","Palma","Mano","Medicina Preventiva"]
[15,"2005-07-06",null,"F",35,null,"Med. Residente","Profesional","Gineco Obstetricia","SOP","SOP","2005-06-29",2005,"8.10 a.m.","Dia",1,null,null,null,null,null,"Corte","Dedo Indice","Izquierda","Medicina Preventiva"]
[16,"2005-09-16",null,"F",34,null,"Oper. Limpieza","Service Limpieza","Gineco Obstetricia","Recuperación","Recuperacion","2005-09-16",2005,"12.40 a.m.","Dia",1,null,null,null,null,null,"Pinchadura","Deno Anular","Mano Izquierda","ESSALUD"]
[1,"2006-01-12",null,"F",53,null,"Medico","Profesional","Gineco Obstetricia","Serv. \"D\"","SOP","2006-01-11",2006,"11:00 a.m.","Dia",1,null,null,null,null,null,"Pinchadura","Dedo Indice"," Mano izquierda","Medicina Preventiva"]
[2,"2006-01-27",null,"F",25,null,"Medico","Profesional","Gineco Obstetricia","SOP","SOP","2006-01-27",2006,"01:30 p.m.","Dia",1,null,null,null,null,null,"Corte","Mano","Izquierda","Medicina Preventiva"]
[3,"2006-02-17",null,"F",45,null,"Tec. Enfermeria","Técnico","Neonatología","Cons. Externos","Pediatria-vacunas","2006-02-17",2006,"10:50 a.m.","Dia",1,null,null,null,null,null,"Pinchadura","Dedo Indice","Mano","PATRUCO","hiv, Hep, RPR"]
[4,"2006-03-03",null,"F",33,"Interno","Int. Obstetricia","Estudiante","Gineco Obstetricia","C. Obstetrico","C. Obstetrico","2006-03-02",2006,null,null,1,null,null,null,null,null,"Salpicadura","Cara","Cara","Medicina Preventiva"]
[5,"2006-03-26",null,"F",22,"Interno","Int. Obstetricia","Estudiante","Gineco Obstetricia","C. Obstetrico","C. Obstetrico","2006-03-26",2006,"04:00 p.m.","Dia",1,null,null,null,null,null,"Salpicadura","Al Ojo derecho","Cara","Medicina Preventiva","HIV,RPR","(-)"]
[6,"2006-03-27",null,"F",27,null,"Oper. Limpieza","Service Limpieza","Gineco Obstetricia","C. Obstetrico","Sala Partos","2006-03-23",2006,"5:30 a.m.","Noche",1,null,null,null,null,null,"Pinchadura","Dedo medio","Mano Izquierda","ESSALUD","Muestra HIV"]
[7,"2006-03-30",null,"F",22,"Interno","Int. Obstetricia","Estudiante","Gineco Obstetricia","C. Obstetrico","C. Obstetrico","2006-03-30",2006,"08:00 a.m.","Dia",1,null,null,null,null,null,"Pinchadura","Dedo medio","Mano Izquierda","Medicina Preventiva"]
[8,"2006-04-05",null,"F",24,"Interno","Int. Obstetricia","Estudiante","Gineco Obstetricia","C. Obstetrico","C. Obstetrico","2006-04-05",2006,"01:25 p.m.","Dia",1,null,null,null,null,null,"Salpicadura","Cara","Cara","Medicina Preventiva"]
[9,"2006-04-10",null,"F",23,"Interno","Int. Obstetricia","Estudiante","Gineco Obstetricia","C. Obstetrico","C. Obstetrico","2006-04-10",2006,"5:00 a.m.","Noche",1,null,null,null,null,null,"Pinchadura","Dedo Meñique","Mano Derecha","Medicina Preventiva","HIV , Hep, RPR"]
[10,"2006-04-27",null,"F",23,"Interno","Int. Obstetricia","Estudiante","Gineco Obstetricia","C. Obstetrico","C. Obstetrico","2006-04-27",2006,"11:30 a.m.","Dia",1,null,null,null,null,null,"Pinchadura","Dedo Pulgar","Mano Derecha","Medicina Preventiva","hiv, Hep, serol","(-)"]
[11,"2006-05-02",null,"F",57,null,"Obstetricia","Profesional","Gineco Obstetricia","C. Obstetrico","C.O. Cubiculo N° 2","2006-05-02",2006,"9:15 a.m.","Dia",1,null,null,null,null,null,"Pinchadura","Dedo Medio","Mano Izquierda","Medicina Preventiva","HIV, Serologicas"]
[12,"2006-05-07",null,"F",44,null,"Tec. Enfermeria","Técnico","Neonatología","UCIN","Uci Neonatal","2006-05-07",2006,"17:30 p.m.","Dia",1,null,null,null,null,null,"Pinchadura","Dedo Meñique","Mano Izquierda","Medicina Preventiva","HIV"]
[13,"2006-05-07",null,"F",38,null,"Tec. Enfermeria","Técnico","Neonatología","UCIN","Uci Neonatal","2006-05-07",2006,"17:00 p.m.","Dia",1,null,null,null,null,null,"Pinchadura","Dedo","Mano Izquierda","Medicina Preventiva","HIV"]
[14,"2006-06-04",null,"F",46,null,"Tec. Enfermeria","Técnico","Gineco Obstetricia","C. Obstetrico","C.Obstetrico","2006-06-04",2006,"10:00 a.m.","Dia",1,null,null,null,null,null,"Pinchadura","Dedo","Mano Derecha","Medicina Preventiva"]
[15,"2006-06-06",null,"F",52,null,"Obstetricia","Profesional","Gineco Obstetricia","C. Obstetrico","C. Obstetrico","2006-06-06",2006,"7:50 a.m.","Dia",1,null,null,null,null,null,"Pinchadura","Dedo Indice","Mano Izquierda","Medicina Preventiva","HIV,RPR,Hep."]
[16,"2006-07-05",null,"M",46,"Nombrado","Tec. Laboratorio","Técnico","Laboratorio","Laboratorio","C. Obstetrico","2006-07-05",2006,"10:00 a.m.","Dia",1,null,null,null,null,null,"Corte",null,null,"Medicina Preventiva"]
[17,"2006-07-10",null,"F",null,null,"Obstetricia","Profesional","Gineco Obstetricia","Serv. \"B\"","Serv. \"B\"","2006-07-10",2006,"12:30 p.m.","Dia"," ",null,1,null,null,null,"Pinchadura","Dedo Indice","Mano","Medicina Preventiva","HIV,RPR"]
[18,"2006-08-08",null,"F",52,null,"Enfermeria","Profesional","Gineco Obstetricia","SOP","SOP","2006-08-07",2006,"02:00 p.m.","Dia",null,null,1,null,null,null,"Corte","Dedo Pulgar","Mano Izquierda","Medicina Preventiva"]
[19,"2006-08-16",null,"F",21,null,"Estud. Obstetricia","Estudiante","Gineco Obstetricia","C. Obstetrico","C. Obstetrico","2006-08-16",2006,"23:00 p.m.","Noche",null,null,null,null,null,null,"Pinchadura","Dedo Indice","Mano Izquierda","Medicina Preventiva","hiv, Hep, RPR","(-)"]
[20,"2006-08-18",null,"F",55,null,"Obstetricia","Profesional","Gineco Obstetricia","Serv. \"B\"","Serv. \"B\"","2006-08-17",2006,"4:00 a.m.","Noche",null,null,1,null,null,null,"Pinchadura","Dedo Pulgar","Mano Izquierda","Medicina Preventiva"]
[21,"2006-08-29",null,"F",42,null,"Medico Pediatra","Profesional","Neonatología","UCI Intermedios","Intermedios I","2006-08-28",2006,"21:30 p.m.","Noche",1,null,null,null,null,null,"Pinchadura","Dedo Medio","Mano Derecha","Medicina Preventiva","HIV,Serologicas"]
[22,"2006-08-31",null,"F",26,null,"Oper. Limpieza","Service Limpieza","Laboratorio","Lab. Emergencia","Lab. Emergencia","2006-08-31",2006,"09:00 a.m.","Dia",1,null,null,null,null,null,"Pinchadura","Dedo Indice","Mano Derecha","ESSALUD"]
[23,"2006-10-06",null,"F",37,null,"Enfermeria","Profesional","Gineco Obstetricia","SOP","SOP","2006-10-06",2006,"3:30 a.m.","Noche",1,null,null,null,null,null,"Pinchadura","Dedo Medio","Mano Izquierda","Medicina Preventiva"]
[24,"2006-10-06",null,"F",58,null,"Tec. Enfermeria","Técnico","Neonatología","Neonatologia","Intermedios IV","2006-10-06",2006,"12:30 p.m.","Dia",1,null,null,null,null,null,"Pinchadura","Dedo Indice","Mano Izquierda","Medicina Preventiva"]
[25,"2006-10-19",null,"F",30,null,"Enfermeria","Profesional","Neonatología","Aten. Inmediata","Atención Inmediata","2006-10-19",2006,"9:00 a.m.","Dia",1,null,null,null,null,null,"Pinchadura","Dedo Indice","Mano Izquierda","Medicina Preventiva","HIV, Sifilis"]
[26,"2006-10-21",null,"F",43,null,"Obstetricia","Profesional","Gineco Obstetricia","Serv. \"B\"","Serv. \"B\"","2006-10-21",2006,"23:00 p.m.","Noche",1,null,null,null,null,null,"Pinchadura","Dedo Indice","Mano Izquierda","Medicina Preventiva"]
[27,"2006-11-02",null,"F",23,"Interno","Int. Obstetricia","Estudiante","Gineco Obstetricia","C. Obstetrico","C. Obstetrico","2006-11-02",2006,"11:20 a.m.","Dia",1,null,null,null,null,null,"Pinchadura","Dedo Indice","Mano Derecha","Medicina Preventiva","HIV, Sifilis"]
[28,"2006-11-08",null,"F",22,"Interno","Int. Obstetricia","Estudiante","Gineco Obstetricia","C. Obstetrico","C. Obstetrico","2006-11-08",2006,"10:00 a.m.","Dia",1,null,null,null,null,null,"Pinchadura","Dedo Pulgar","Mano Derecha","Medicina Preventiva","HIV,RPR"]
[29,"2006-11-28",null,"M",24,"Interno","Int. Medicina","Estudiante","Gineco Obstetricia","Serv. \"D\"","SOP","2006-11-28",2006,"13.30 p.m.","Dia",1,null,null,null,null,null,"Pinchadura","Dedo Medio","Mano Derecha","Medicina Preventiva","HIV,Sifilis,Hep."]
[30,"2006-12-20",null,"F",22,null,"Estud. Obstetricia","Estudiante","Gineco Obstetricia","C. Obstetrico","C. Obstetrico","2006-12-20",2006,"8:00 a.m.","Dia",1,null,null,null,null,null,"Salpicadura","Los Ojos","Cara","Medicina Preventiva"]
[31,"2006-12-27",null,"F",25,"Interno","Int. Obstetricia","Estudiante","Gineco Obstetricia","C. Obstetrico","C. Obstetrico","2006-12-27",2006,"7:00 a.m.","Dia",1,null,null,null,null,null,"Pinchadura","Dedo Indice","Mano Izquierda","Medicina Preventiva","HIV,RPR,Hep","(-)"]
[1,"2007-01-12",null,"M",52,null,"Tec. Enfermeria","Técnico","Gineco Obstetricia","Sala de Recuperac.","Sala Recuperación","2007-01-12",2007,"12:10 p.m.","Dia",1,null,null,null,null,null,"Pinchadura","Dedo Pulgar","Mano Izquierda","Medicina Preventiva"]
[2,"2007-01-19",null,"F",53,"Nombrado","Tec. Laboratorio","Técnico","Gineco Obstetricia","Toma muestra Ser.C","Servicio C","2007-01-19",2007,"10:30 a.m.","Dia",null,null,null,null,null,null,"Caida","Caida  por piso humedo","Caida de costado","Medico Personal"]
[3,"2007-02-14",null,"F",49,null,"Tec. Enfermeria","Técnico","Neonatología","Roperia","Neonatología","2007-02-14",2007,"7:30 a.m.","Dia",1,null,null,null,null,null,"Pinchadura","Palma","Mano Izquierda","Medicina preventiva"]
[4,"2007-02-16",null,"F",35,null,"Tec. Enfermeria","Técnico","Neonatología","Neonatologia","Neonatología - UCI C","2007-02-16",2007,"12:00 p.m.","Dia",1,null,null,null,null,null,"Pinchadura","Indice","Mano Derecha","Medicina preventiva"]
[5,"2007-02-27",null,"F",28,null,"Oper. Limpieza","Service Limpieza","Gineco Obstetricia","SOP","SOP","2007-02-21",2007,"9:45 a.m.","Dia",1,null,null,null,null,null,"Salpicadura","Los Ojos","Cara","Medicina preventiva"]
[6,"2007-02-22",null,"F",40,null,"Obstetricia","Profesional","Gineco Obstetricia","Serv. \"B\"","Serv. \"B\"","2007-02-23",2007,"17:30 p.m.","Dia",1,null,null,null,null,null,"Corte","Palma","Mano Izquierda","Medicina preventiva"]
[7,"2007-03-05",null,"F",23,"Interno","Int. Medicina","Estudiante","Gineco Obstetricia","Ginecologia","SOP","2007-03-03",2007,"8:30 a.m.","Dia",1,null,null,null,null,null,"Pinchadura","Dedo Indice","Mano Derecha","Medicina preventiva","HIV,RPR","(-)"]
[8,"2007-03-05",null,"F",25,"Interno","Int. Medicina","Estudiante","Gineco Obstetricia","SOP","SOP","2007-03-04",2007,"00:00 a.m.","Noche",1,null,null,null,null,null,"Pinchadura",null,"Mano Derecha","Medicina preventiva"]
[9,"2007-03-06",null,"F",33,null,"Oper. Limpieza","Service Limpieza","Neonatología","Intermedios UCIN","Neonatología  Int.III","2007-03-05",2007,"15:00 p.m.","Dia",1,null,1,null,null,null,"Pinchadura","Dedo Indice","Mano Izquierda","Medicina preventiva"]
[10,"2007-03-12",null,"F",43,null,"Tec. Enfermeria","Técnico","Neonatología","Neonatologia","Neonatología Int. I","2007-03-12",2007,"8:30 a.m.","Dia",1,null,null,null,null,null,"Pinchadura","Dedo Pulgar","Mano Derecha","Medicina preventiva"]
[11,"2007-03-13",null,"F",45,null,"Medico","Profesional","Neonatología","Neonatologia","Neonatología","2007-03-13",2007,"3:00 a.m.","Noche",1,null,null,null,null,null,"Pinchadura","Dedo Medio","Mano Izquierda","Medicina preventiva"]
[12,"2007-03-20",null,"M",53,null,"Tec. Mantenimiento","Técnico","Administración","Mantenimiento","Pasadizo, Area Adm.","2007-03-20",2007,"2:00  p.m.","Dia",1,null,null,null,null,null,"Caida","Cabeza, cuerpo completo ","Todo el cuerpo","ESSALUD"]
[13,"2007-03-28",null,"F",29,null,"Residente Pediatra","Profesional","Neonatología","UCI-A","UCI-A","2007-03-27",2007,"11:00 p.m.","Noche",1,null,null,null,null,null,"Pinchadura","Brazo","Izquierdo","Medicina preventiva"]
[14,"2007-04-04",null,"M",42,"Nombrado","Tec. Administrativo","Técnico","Administración","Control de Asistencia","Lavadero Bco. Sangre","2007-04-04",2007,"06:50 p.m.","Dia",1,null,null,null,null,null,"Corte","Indice","Mano Derecha","Medicina preventiva"]
[15,"2007-04-09",null,"M",55,"Nombrado","Tec. Laboratorio","Técnico","Laboratorio","Lab. Central","Cons. Externos","2007-04-09",2007,"12:45 p.m.","Dia",1,null,null,null,null,null,"Pinchadura","Indice","Mano Derecha","Medicina preventiva"]
[16,"2007-04-13",null,"F",26,"Interno","Int. Medicina","Estudiante","Cons. Externos","Medicina Preventiva","SOP","2007-04-10",2007,"13:00 p.m.","Dia",1,null,null,null,null,null,"Pinchadura","Pulgar","Mano Derecha","Medicina preventiva"]
[17,"2007-04-16",null,"F",48,null,"Obstetricia","Profesional","Gineco Obstetricia","Serv. \"D\"","Serv. \"D\"","2007-04-16",2007,"17:30p.m.","Dia",1,null,null,null,null,null,"Pinchadura","Palma","Mano Derecha","PATRUCO"]
[18,"2007-05-12",null,"F",26,"Interno","Int. Medicina","Estudiante","Gineco Obstetricia","SOP","SOP","2007-05-12",2007,"11:00 a.m.","Dia",1,null,null,null,null,null,"Corte","Indice","Mano Derecha","Medicina preventiva"]
[19,"2007-05-15",null,"F",41,null,"Tec. Enfermeria","Técnico","Gineco Obstetricia","Ginecologia","Emergencia","2007-05-15",2007,"15:00 p.m.","Dia",1,null,null,null,null,null,"Pinchadura","Anular","Mano Derecha","Medicina preventiva"]
[20,"2007-05-24",null,"F",30,null,"Med. Residente 2","Profesional","Neonatología","Neonatologia - UCIA","Neonatologia ","2007-05-24",2007,"10:30 a.m.","Dia",1,null,null,null,null,null,"Pinchadura","Palma","Mano Izquierda","Medicina preventiva"]
[21,"2007-06-11",null,"F",34,null,"Oper. Limpieza","Service Limpieza","Neonatología","Neonatologia - UCIA","UCIN-A","2007-06-11",2007,"12:00 a.m.","Dia",1,null,null,null,null,null,"Pinchadura","Pulgar","Mano Derecha","Medicina preventiva"]
[22,"2007-06-19",null,"F",23,"Interno","Int. Medicina","Estudiante","Gineco Obstetricia","SOP","SOP","2007-06-19",2007,"16:45 p.m.","Dia",1,null,null,null,null,null,"Corte","Mano","Mano Derecha","Medicina preventiva"]
[23,"2007-07-25",null,"F",20,null,"Oper. Limpieza","Service Limpieza","Clinica","Clinica","Pasadizo de Clinica","2007-07-25",2007,"08:30 p.m.","Dia",1,null,null,null,null,null,"Pinchadura","Indice","Mano Izquierda","Medicina preventiva","HIV,Sifilis,Hep"]
[24,"2007-08-01",null,"F",26,null,"Oper. Limpieza","Service Limpieza","Neonatología","Neonatologia","Intermedios","2007-07-29",2007,"10:30 a.m.","Dia",1,null,1,null,null,null,"Pinchadura","Indice","Mano Derecha","Medicina preventiva"]
[25,"2007-08-01",null,"M",25,null,"Oper. Limpieza","Service Limpieza","Mantenimiento","Jardineria","Jardines","2007-08-01",2007,"02:50 p.m.","Dia",1,null,null,null,null,null,"Pinchadura","Pulgar","Mano Derecha","Medicina preventiva"]
[26,"2007-08-13",null,"F",32,null,"Med. Residente","Profesional","Gineco Obstetricia","Serv. \"C\"","SOP","2007-08-13",2007,"15:00 p.m.","Dia",1,null,null,null,null,null,"Salpicadura","Mano","Mano Derecha","Medicina preventiva","HIV,Sifilis"]
[27,"2007-08-24",null,"F",52,null,"Obstetricia","Profesional","Gineco Obstetricia","Puerperio Normal","Servicio 4","2007-08-24",2007,"06:30 p.m.","Dia",1,null,null,null,null,null,"Pinchadura","Indice","Mano Izquierda","Medicina preventiva","HIV,RPR,Hep."]
[28,"2007-08-29",null,"F",43,null,"Tec. Enfermeria","Técnico","Gineco Obstetricia","SOP","SOP","2007-08-28",2007,"14:00 p.m.","Dia",1,null,null,null,null,null,"Pinchadura","Pulgar","Mano Izquierda","Medicina preventiva","HIV,RPR"]
[29,"2007-08-31",null,"M",40,"Nombrado","Tec. Laboratorio","Técnico","Laboratorio","Patología","Macroscopia Patologica","2007-08-25",2007,"13:00 p.m.","Dia",1,null,null,null,null,null,"Corte","Pulgar","Mano Izquierda","Medicina preventiva","HIV,RPR"]
[30,"2007-09-05",null,"F",42,null,"Obstetricia","Profesional","Gineco Obstetricia","Serv. \"D\"","Serv. \"B\"","2007-09-05",2007,"18:00 p.m.","Dia",1,null,null,null,null,null,"Pinchadura","Indice","Mano Izquierda","Medicina preventiva","HIV,RPR"]
[31,"2007-09-11",null,"F",38,null,"Medico Patologo","Profesional","Patologia","Servicio Patologia","Anatomia Patologica","2007-09-11",2007,"10:00 a.m.","Dia",1,null,null,null,null,null,"Corte","Mano cara externa","Mano Derecha","Medicina preventiva"," "]
[32,"2007-09-11",null,"F",39,null,"Enfermeria","Profesional","Neonatología","Intermedios I","Intermedios IV","2007-09-11",2007,"15:50 p.m.","Dia",1,null,null,null,null,null,"Pinchadura","Mano cara interna","Mano Derecha","Medicina preventiva","HIV,RPR"]
[33,"2007-09-12",null,"M",34,null,"Medico Intensivista","Profesional","Neonatología","UCI","UCI","2007-09-12",2007,"01:00 a.m.","Noche",1,null,1,null,null,null,"Pinchadura","Indice","Mano Izquierda","Medicina preventiva","HIV,RPR,Hep \"B\""]
[34,"2007-10-03",null,"M",40,"Nombrado","Tec. Laboratorio","Técnico","Laboratorio","Patología","Macroscopia Patologica","2007-09-28",2007,"13:10 p.m.","Dia",1,null,null,null,null,null,"Pinchadura","Pulgar","Mano Izquierda","Medicina preventiva","HIV,RPR"]
[35,"2007-10-16",null,"F",60,null,"Tec. Enfermeria","Técnico","Gineco Obstetricia","Puerperio Normal","Puerperio Normal","2007-10-05",{"$f":"YEAR(L168)","v":2007},"02:00 p.m.","Noche",1,null,null,null,null,null,"Pinchadura","brazo","derecho","Medicina preventiva","HIV,RPR"]
[36,"2007-10-23",null,"F",41,null,"Obstetricia","Profesional","Gineco Obstetricia","Medicina Fetal","Medicina Fetal","2007-10-23",2007,"13:00 p.m.","Dia",1,null,null,null,null,null,"Pinchadura","Meñique","Mano Derecha","Medicina preventiva","HIV,Sifilis"]
[37,"2007-10-30",null,"F",33,null,"Med. Residente","Profesional","Neonatología","Neonatologia - UCIA","UCIN-A","2007-10-30",2007,"18:30 p.m.","Dia",1,null,null,null,null,null,"Pinchadura","Medio","Mano Izquierda","Medicina preventiva","HIV,RPR"]
[38,"2007-11-01",null,"M",65,null,"Medico Patologo","Profesional","Patologia","Patología","Laboratorio Patologia","2007-11-01",2007,"11:00 a.m.","Dia",null,1,null,null,null,null,"Salpicadura","Salpicadura de Formol a los ojos","Cara","Medicina preventiva"]
[39,"2007-11-30",null,"F",35,null,"Oper. Limpieza","Service Limpieza","Gineco Obstetricia","SOP","SOP","2007-11-30",2007,"11:00 a.m.","Dia",1,null,null,null,null,null,"Pinchadura","Indice","Mano Izquierda","Medicina preventiva","HIV,RPR"]
[40,"2007-12-06",null,"F",42,null,"Obstetricia","Profesional","Gineco Obstetricia","Serv. \"C\"","Serv. \"C\"","2007-12-06",2007,"01:00 a.m.","Noche",1,null,null,null,null,null,"Pinchadura","Anular","Mano Izquierda","Medicina preventiva","HIV,RPR"]
[41,"2007-12-16",null,"F",35,null,"Enfermeria","Profesional","Neonatología","UCI B Neonatal","UCI B","2007-12-16",2007,"11:30 p.m.","Noche",1,null,null,null,null,null,"Pinchadura","Mano","Mano Derecha","PATRUCO"]
[1,"2008-01-16",null,"F",47,null,"Tec. Enfermeria","Técnico","Neonatología","Aten. Inmediata","Atención Inmediata","2008-01-16",2008,"09:25 a.m.","Dia",1,null,null,null,null,null,"Pinchadura","Pulgar","Mano Izquierda","Medicina preventiva"]
[2,"2008-01-23",null,"F",46,"Nombrado","Tec. Laboratorio","Técnico","Laboratorio","Laboratorio","UCIN","2008-01-23",2008,"11:45 a.m.","Dia",1,null,null,null,null,null,"Pinchadura","Indice","Mano Izquierda","Medicina preventiva"]
[3,"2008-02-01",null,"M",35,null,"Medico","Profesional","Gineco Obstetricia","Ginecologia","Sala de Operaciones","2008-02-01",2008,"10:00 a.m.","Dia",1,null,null,null,null,null,"Pinchadura","Mano","Mano Izquierda","Medicina preventiva","HIV,Sifilis,Hep"]
[4,"2008-02-13",null,"F",25,"Interno","Int. Obstetricia","Estudiante","Gineco Obstetricia","Serv. \"C\"","Serv. \"C\"","2008-02-13",2008,"18:10 p.m.","Dia",1,null,null,null,null,null,"Pinchadura","Indice","Mano Derecha","Medicina preventiva"]
[5,"2008-02-19",null,"F",36,null,"Enfermeria","Profesional","Neonatología","Intermedios I","Intermedios I","2008-02-19",2008,"14:50  p.m.","Dia",1,null,null,null,null,null,"Pinchadura","Medio","Mano Derecha","Medicina preventiva"]
[6,"2008-02-20",null,"F",58,null,"Tec. Enfermeria","Técnico","Neonatología","Intermedios III","Intermedios III","2008-02-20",2008,"18:30 p.m.","Dia",1,null,null,null,null,null,"Corte","Mano","Mano Izquierda","Medicina preventiva"]
[7,"2008-02-21",null,"M",28,null,"Residente Pediatra","Profesional","Neonatología","UCI-A","UCI-A","2008-02-21",2008,"17:00 p.m.","Dia",1,null,null,null,null,null,"Pinchadura","Indice","Mano Izquierda","Medicina preventiva","HIV,Sifilis,Hep"]
[8,"2008-02-22",null,"M",23,"Interno","Int. Oftalmologia","Estudiante","Cons. Externos","Cons. Oftalmologia","Cons. Oftalmologia","2008-02-22",2008,"10:00 a.m.","Dia",1,null,null,null,null,null,"Pinchadura","Anular","Mano Derecha","Medicina preventiva"]
[9,"2008-04-02",null,"M",23,"Interno","Int. Medicina","Estudiante","Gineco Obstetricia","Serv. \"C\"","SOP","2008-04-02",2008,"16:15 p.m.","Dia",1,null,null,null,null,null,"Pinchadura","Pulgar","Mano Izquierda","Medicina preventiva","HIV,RPR"]
[10,"2008-04-14",null,"M",27,"Interno","Int. Obstetricia","Estudiante","Gineco Obstetricia","C. Obstetrico","C. Obstetrico Amb.15","2008-04-12",2008,"12:50 p.m.","Dia",null,null,null,null,null,null,"Salpicadura","Salpicadura de Liquido Amniotico en cara","Cara","Medicina preventiva","RPR,HIV,HEP."]
[11,"2008-04-16",null,"F",21,"Interno","Int. Obstetricia","Estudiante","Gineco Obstetricia","Serv. \"A\"","Serv. \"A\"","2008-04-13",2008,"11:00 a.m.","Dia",1,null,null,1,null,null,"Pinchadura","Medio","Mano Derecha","Medicina preventiva"]
[12,"2008-04-21",null,"F",43,null,"Tec. Enfermeria","Técnico","Gineco Obstetricia","Ginecologia","Ginecologia","2008-04-17",2008,"10:30 a.m.","Dia",1,null,null,null,null,null,"Pinchadura","Indice","Mano Derecha","Medicina preventiva","HIV,RPR"]
[13,"2008-04-25",null,"F",50,null,"Obstetricia","Profesional","Gineco Obstetricia","Serv. \"D\"","Jefatura de Obstetricia","2008-04-25",2008,"19:10 p.m.","Noche",1,null,null,null,null,null,"Caida","Caida de frente por piso encerado","Rodillas y pechos","Medico Personal"]
[14,"2008-04-26",null,"F",50,null,"Tec. Enfermeria","Técnico","Gineco Obstetricia","Serv. \"C\"","Serv. \"C\", cama 39","2008-04-26",2008,"23:00 p.m.","Noche",1,null,null,null,null,null,"Pinchadura","Indice","Mano Izquierda","Medicina preventiva","HIV,RPR"]
[15,"2008-05-06",null,"F",42,null,"Obstetricia","Profesional","Gineco Obstetricia","Serv. \"D\"","Pasadizo Emergencia","2008-05-06",2008,"10:00 a.m.","Dia",1,null,1,null,null,null,"Caida","Caida de espalda por piso encerado","Brazo, pierna","Medico Personal"]
[16,"2008-05-22",null,"F",48,null,"Obstetricia","Profesional","Gineco Obstetricia","C. Obstetrico","C. Obstetrico","2008-05-22",2008,"11:30 a.m.","Dia",1,null,null,null,null,null,"Pinchadura","Palma","Mano Izquierda","Medicina preventiva","RPR,HIV"]
[17,"2008-05-23",null,"M",26,null,"Oper. Limpieza","Service Limpieza","Laboratorio","Bco. Sangre","Bco. Sangre","2008-05-23",2008,"10:00 a.m.","Dia",1,null,null,null,null,null,"Corte","Pulgar, Indice","Mano Izquierda","Medicina preventiva"]
[18,"2008-05-25",null,"F",35,null,"Medico","Profesional","Neonatología","Neonatologia","Uci Neonatal","2008-05-25",2008,"13:30 p.m.","Dia",1,null,null,null,null,null,"Pinchadura","Palma","Mano Izquierda","Medicina preventiva"]
[19,"2008-06-03",null,"M",43,null,"Obstetricia","Profesional","Gineco Obstetricia","Serv. \"D\"","Serv. \"D\"","2008-05-27",2008,"23:00 p.m.","Noche",1,null,null,null,null,null,"Pinchadura","Indice","Mano Izquierda","Medicina preventiva","RPR,HIV"]
[20,"2008-06-10",null,"F",42,null,"Enfermeria","Profesional","Gineco Obstetricia","SOP","SOP","2008-06-10",2008,"13:30 p.m.","Dia",1,null,null,null,null,null,"Pinchadura","Anular","Mano Izquierda","Medicina preventiva","RPR,HIV"]
[21,"2008-06-10",null,"F",35,null,"Enfermeria","Profesional","Gineco Obstetricia","SOP","SOP","2008-06-10",2008,"10:40 a.m.","Dia",1,null,null,null,null,null,"Corte","Palma","Mano Izquierda","Medicina preventiva","RPR,HIV"]
[22,"2008-06-20",null,"M",30,"Interno","Int. Medicina","Estudiante","Gineco Obstetricia","SOP","SOP","2008-06-20",2008,"20:30 p.m.","Noche",1,null,null,null,null,null,"Corte","Palma","Mano Izquierda","Medicina preventiva","RPR,HIV"]
[23,"2008-06-27",null,"M",31,"Interno","Int. Medicina","Estudiante","Gineco Obstetricia","Emergencia","SOP","2008-06-27",2008,"06:00 a.m.","Dia",1,null,null,null,null,null,"Salpicadura","Salpicadura de Secreción al ojo izquierdo","Cara","Medicina preventiva","RPR,HIV"]
[24,"2008-07-08",null,"F",39,null,"Obstetricia","Profesional","Gineco Obstetricia","Clinica","Emergencia","2008-07-07",2008,"21:00 p.m.","Noche",1,null,null,null,null,null,"Salpicadura","Salpicadura de Liquido Amniotico en cara","Ojos","Medicina Preventiva"]
[25,"2008-08-05",null,"F",38,null,"Obstetricia","Profesional","Gineco Obstetricia","C. Obstetrico","C. Obstetrico","2008-08-02",2008,"02:00 a.m.","Noche",1,null,null,null,null,null,"Pinchadura","Pulgar","Mano Izquierda","Medicina Preventiva"]
[26,"2008-08-11",null,"F",60,null,"Tec. Enfermeria","Técnico","Neonatología","Aloj. Conjunto","Ascensor Perú Japón","2008-08-04",2008,"23:00 p.m.","Noche",null,null,1,null,null,null,"Caida","Golpe con puerta de ascensor, cabeza,espalda, brazo, etc","Todo el cuerpo","Medico Particular","TEC Leve"]
[27,"2008-08-14",null,"F",24,"Interno","Int. Obstetricia","Estudiante","Gineco Obstetricia","Serv. \"D\"","Serv. \"D\"","2008-08-14",2008,"13:00 p.m.","Dia",1,null,null,null,null,null,"Pinchadura","Pulgar","Mano Izquierda","Medicina preventiva","RPR,HIV"]
[28,"2008-08-18",null,"F",24,"Interno","Int. Obstetricia","Estudiante","Gineco Obstetricia","Serv. \"D\"","Serv. \"D\"","2008-08-16",2008,"12:00 a.m.","Dia",1,null,null,null,null,null,"Salpicadura","Mano estaba con corte y salpico Sangre a la herida","Mano Derecha","Medicina preventiva","RPR,HIV"]
[29,"2008-08-27",null,"M",18,null,"Oper. Limpieza","Service Limpieza","Gineco Obstetricia","C. Obstetrico","C.Obstetrico","2008-08-27",2008,"14:30 a.m.","Dia",1,null,null,null,null,null,"Pinchadura","Pulgar","Mano Derecha","Medicina preventiva","RPR,HIV"]
[30,"2008-08-28",null,"F",31,null,"Enfermeria","Profesional","Neonatología","Uci Neonatal","Uci Neonatal","2008-08-25",2008,"23:00 p.m.","Noche",1,null,null,null,null,null,"Pinchadura","Indice","Mano Izquierda","Medicina Preventiva"]
[31,"2008-09-05",null,"F",39,null,"Aux. Lavanderia","Técnico","Administración","Serv. De Lavanderia","Serv. De Lavanderia","2008-09-05",2008,"11:00 a.m.","Dia",1,null,null,null,null,null,"Pinchadura","Pulgar","Mano Derecha","Medecina Preventiva"]
[32,"2008-09-12",null,"F",42,null,"Enfermeria","Profesional","Neonatología","Neonatologìa","Intermedios I","2008-09-04",2008,"10:00 a.m.","Dia",1,null,null,null,null,null,"Pinchadura","Anular","Mano Izquierda","PATRUCO"]
[33,"2008-09-10",null,"F",41,null,"Tec. Enfermeria","Técnico","Gineco Obstetricia","Clinica","Sala Oper. Emerg","2008-09-10",2008,"10:30 a.m.","Dia",1,null,null,null,null,null,"Pinchadura","Indice","Mano Izquierda","Medicina preventiva","RPR,HIV"]
[34,"2008-09-17",null,"F",27,null,"Enfermeria","Profesional","Neonatología","Neonatologia","Uci Neonatal","2008-09-10",2008,"12:30 a.m.","Dia",1,null,null,null,null,null,"Corriente","Trasmitio corriente al desenchufar monitor","Mano Derecha"]
[35,"2008-09-24",null,"M",19,null,"Oper. Limpieza","Service Limpieza","Neonatología","Neonatologia","Neonatología","2008-09-21",2008,"22:15 p.m.","Noche",1,null,null,null,null,null,"Pinchadura","Muslo","Pierna Izquierda","Medicina preventiva","RPR,HIV"]
[36,"2008-10-21",null,"F",43,null,"Obstetricia","Profesional","Gineco Obstetricia","C. Obstetrico","C.Obstetrico","2008-10-21",2008,"11:47 a.m.","Dia",1,null,null,null,null,null,"Salpicadura","Salpicadura de Liquido Amniotico en cara","Ojo Derecho","Medicina Preventiva","RPR,HIV"]
[37,"2008-10-22",null,"F",28,"Interno","Int. Medicina","Estudiante","Gineco Obstetricia","Serv. \"D\"","SOP","2008-10-22",2008,"19:00 p.m.","Dia",1,null,null,null,null,null,"Salpicadura","Salpicadura de Sangre en cara","Ojos","Medicina Preventiva","Lavado"]
[38,"2008-11-05",null,"F",37,null,"Enfermeria","Profesional","Neonatología","Uci Neonatal","Uci Neonatal","2008-10-09",2008,"15:00 p.m.","Dia",1,null,null,null,null,null,"Corte","Pulgar","Mano Izquierda","Medicina Preventiva"]
[39,"2008-11-06",null,"M",26,"Interno","Int. Medicina","Estudiante","Gineco Obstetricia","Ginecologia","SOP","2008-11-06",2008,"09:15 a.m.","Dia",1,null,null,null,null,null,"Salpicadura","Salpicadura de Secreción haciendo Histerectomia","Ojo Derecho","Medicina Preventiva","Patruco"]
[40,"2008-11-10",null,"F",23,"Interno","Int. Medicina","Estudiante","Gineco Obstetricia","Ginecologia","SOP","2008-11-10",2008,"9:00 a.m.","Dia",1,null,null,null,null,null,"Pinchadura","Mano","Mano Izquierda","Medicina preventiva","RPR,HIV"]
[41,"2008-11-21",null,"F",30,null,"Oper. Limpieza","Service Limpieza","Gineco Obstetricia","Serv. \"D\"","Serv. \"D\"","2008-11-21",2008,"17:00 p.m.","Dia",1,null,null,null,null,null,"Pinchadura","Palma","Mano Derecha","Medicina preventiva","RPR,HIV"]
[42,"2008-11-25",null,"F",30,null,"Med. Residente","Profesional","Gineco Obstetricia","UCIM","Ucim","2008-11-25",2008,"10:30 a.m.","Dia",1,null,null,null,null,null,"Pinchadura","Pulgar","Mano Derecha","Medicina preventiva"]
[43,"2008-12-09",null,"F",47,null,"Tec. Laboratorio","Técnico","Laboratorio","Patología","Anatomia Patologica","2008-12-06",2008,"8:30 a.m.","Dia",1,null,null,null,null,null,"Corte","Muslo","Izquierdo","Medicina preventiva"]
[44,"2008-12-13",null,"F",23,"Interno","Int. Obstetricia","Estudiante","Gineco Obstetricia","Centro Obstetrico","Centro Obstetrico Nº 3","2008-12-13",2008,"2:50 a.m.","Noche",1,null,null,null,null,null,"Salpicadura","Salpicadura de Liquido Amniotico en cara","Cara","Medicina Preventiva","RPR,HIV"]
[45,"2008-12-21",null,"F",30,null,"Oper. Limpieza","Service Limpieza","Gineco Obstetricia","Serv. \"D\"","Serv. \"D\"","2008-12-18",2008,"17:00 p.m.","Dia",1,null,null,null,null,null,"Pinchadura","Palma","Mano Derecha","Medicina Preventiva","RPR, Sifilis"]
[46,"2008-12-26",null,"M",33,"Interno","Int. Medicina","Estudiante","Gineco Obstetricia","Ginecologia","SOP","2008-12-26",2008,"20:00 p.m.","Noche",1,null,null,null,null,null,"Pinchadura","Indice","Mano Izquierda","Medicina Preventiva","RPR,HIV"]
[1,"2009-01-02",null,"M",30,null,"Med. Residente 3","Profesional","Gineco Obstetricia","Ginecologia","Ginecologia","2009-01-01",2009,"12:00 p.m.","Dia",1,null,null,null,null,null,"Pinchadura","Pulgar","Mano Izquierda","Medicina Preventiva"]
[2,"2009-01-03",null,"F",35,null,"Enfermeria","Profesional","Neonatología","Neonatologia","Intermedios I","2009-01-03",2009,"14:30  p.m.","Dia",1,null,null,null,null,null,"Pinchadura","Meñique","Mano Derecha","Medicina Preventiva"]
[3,"2009-01-12",null,"F",32,null,"Biologa","Profesional","Laboratorio","Microbiologia","Laboratorio","2009-01-12",2009,"8:30 a.m.","Dia",1,null,null,null,null,null,"Pinchadura","Indice","Mano Derecha","Medicina Preventiva"]
[4,"2009-01-16",null,"M",23,null,"Oper. Limpieza","Service Limpieza","Mantenimiento","Centro Acopio R.S.","Centro Acopio R.S.","2009-01-16",2009,"11:25 a.m.","Dia",1,null,null,null,null,null,"Pinchadura","Muslo","Lado Derecho","Medicina Preventiva"]
[5,"2009-01-19",null,"F",28,"Interno","Int. Medicina","Estudiante","Gineco Obstetricia","Serv. \"D\"","SOP","2009-01-18",2009,"13:00 p.m.","Noche",1,null,null,null,null,null,"Pinchadura","Indice","Mano Izquierda","Medicina Preventiva"]
[6,"2009-01-19",null,"M",23,"Interno","Int. Medicina","Estudiante","Gineco Obstetricia","SOP","SOP","2009-01-18",2009,"20:30 a.m.","Noche",1,null,null,null,null,null,"Pinchadura","Indice","Mano Derecha","Medicina Preventiva"]
[7,"2009-01-19",null,"F",null,null,"Tec. Enfermeria","Técnico","Neonatología","Aloj. Conjunto","Intermedios IV","2009-01-19",2009,"16:30 p.m.","Dia",1,null,null,null,null,null,"Corte","Mano","Mano Derecha","Medicina Preventiva"]
[8,"2009-01-21",null,"F",35,null,"Enfermeria","Profesional","Gineco Obstetricia","Ginecologia","Ginecologia","2009-01-16",2009,"18:45 p.m.","Dia",1,null,null,null,null,null,"Pinchadura","Medio","Manoi Izquierda","Medicina Preventiva","RPR,HIV"]
[9,"2009-01-26",null,"F",22,"Interno","Int. Obstetricia","Estudiante","Gineco Obstetricia","C. Obstetrico","C.Obstetrico","2009-01-25",2009,"19:30 p.m.","Noche",1,null,null,null,null,null,"Pinchadura","Medio","Mano Izquierda","Medicna Preventiva"]
[10,"2009-01-26",null,"F",41,null,"Obstetricia","Profesional","Gineco Obstetricia","C. Obstetrico","C.Obstetrico","2009-01-26",2009,"14:30p.m.","Noche",1,null,null,null,null,null,"Pinchadura","Indice","Mano Izquierda","Medicina Preventiva"]
[11,"2009-01-26",null,"F",49,null,"Tec. Enfermeria","Técnico","Gineco Obstetricia","C. Obstetrico","C.Obstetrico","2009-01-25",2009,"11:00 a.m.","Dia",1,null,null,null,null,null,"Pinchadura","Borde Extremo","Mano Izquierda","Medicina Preventiva"]
[12,"2009-01-27",null,"F",44,null,"Obstetricia","Profesional","Gineco Obstetricia","C. Obstetrico","Sala de Partos","2009-01-27",2009,"2:50 a.m.","Noche",1,null,null,null,null,null,"Contacto","Atención de Parto sin guantes, contacto con sangre y fluidos","Manos","Medicina Preventiva"]
[13,"2009-01-28",null,"F",55,null,"Medico Pediatra","Profesional","Neonatología","Uci Neonatal","Uci Neonatal","2009-01-28",2009,"10:00 a.m.","Dia",null,null,1,null,null,null,"Caida","Hombro., Rodilla, pie","Lado Izquierdo","Medicina Preventiva"]
[14,"2009-02-04",null,"M",26,"Interno","Int.  Medicina","Estudiante","Gineco Obstetricia","Serv. \"A\"","Sala de Operaciones","2009-02-04",2009,"7:40 a.m.","Dia",1,null,null,null,null,null,"Salpicadura","Al Ojo Izquierdo","Cara","Medicina Preventiva","RPR,HIV"]
[15,"2009-02-04",null,"F",48,null,"Tec. Enfermeria","Técnico","Neonatología","Uci Neonatal","Uci Neonatal","2009-02-04",2009,"7:30 a.m.","Dia",1,null,null,null,null,null,"Caida","Doblo el pie derecho y cae, golpea rodilla.","Lado Derecho","Medico de Personal"]
[16,"2009-02-06",null,"F",42,null,"Tec. Enfermeria","Técnico","Gineco Obstetricia","SOP","SOP","2009-02-06",2009,"7:30 a.m.","Dia",1,null,null,null,null,null,"Pinchadura","Meñique","Mano Izquierda","Medicina Preventiva"]
[17,"2009-02-06",null,"F",47,null,"Tec. Enfermeria","Técnico","Neonatología","Neonatologia","Uci \"C\"","2009-02-06",2009,"15:00 p.m.","Dia",1,null,null,null,null,null,"Pinchadura","Abdomen","Cuerpo","Medicina Preventiva"]
[18,"2009-02-11",null,"M",25,"Interno","Int.  Medicina","Estudiante","Gineco Obstetricia","C. Obstetrico","C.Obstetrico","2009-02-09",2009,"9:45 a.m.","Dia",1,null,null,null,null,null,"Pinchadura","Indice","Mano Izquierda","Medicina Preventiva"]
[19,"2009-02-13",null,"F",28,null,"Med. Residente","Profesional","Gineco Obstetricia","SOP","SOP","2009-02-13",2009,"12:00 a.m.","Dia",1,null,null,null,null,null,"Pinchadura","Indice","Mano Izquierda","Medicina preventiva"]
[20,"2009-02-17",null,"M",65,null,"Tec. Mantenimiento","Técnico","Administración","Serv. Generales","Serv. Generales","2009-02-17",2009,"11:00 a.m.","Dia",1,null,null,null,null,null,"Ruido","Oidos","Cabeza","Medicina preventiva"]
[21,"2009-02-26",null,"M",27,null,"Oper. Limpieza","Service Limpieza","Mantenimiento","Cochero","Centro Acopio R.S.","2009-01-20",2009,"9:00 a.m.","Dia",1,null,null,null,null,null,"Pinchadura","Muñeca","Mano Derecha","Medicina preventiva"]
[22,"2009-02-27",null,"F",47,null,"Tec. Laboratorio","Técnico","Laboratorio","Patología","Anatomia Patologica","2009-02-27",2009,"8:30 a.m.","Dia",1,null,null,null,null,null,"Corte","Pulgar","Mano derecha","Medicina preventiva"]
[23,"2009-02-27",null,"F",35,null,"Obstetricia","Profesional","Gineco Obstetricia","Serv. \"B\"","Topico Serv. \"B\"","2009-02-27",2009,"8:00 a.m.","Dia",1,null,null,null,null,null,"Pinchadura","Dorso","Brazo Izquierdo","Medicina preventiva"]
[24,"2009-03-02",null,"F",52,null,"Obstetricia","Profesional","Gineco Obstetricia","C. Obstetrico","C. Obstetrico","2009-01-27",2009,"18:30 p.m.","Dia",1,null,null,null,null,null,"Pinchadura","Mano","Mano Izquierda","Medicina preventiva","RPR,HIV"]
[25,"2009-03-06",null,"F",45,null,"Medico Pediatra","Profesional","Neonatología","Aten. Inmediata","Escalera Peru Japon","2009-02-27",2009,"8:15 a.m.","Dia",1,null,null,null,null,null,"Caida","Cabeza, rodillas, piernas","Cuerpo","Medicina preventiva"]
[26,"2009-03-06",null,"F",51,null,"Enfermeria","Profesional","Neonatología","Aten. Inmediata","Escalera Peru Japon","2009-02-28",2009,"12:00 a.m.","Dia",1,null,null,null,null,null,"Caida","Brazo,Pierna, Pie","Lado Derecho","Medicina preventiva"]
[27,"2009-03-11",null,"F",48,null,"Tec. Laboratorio","Técnico","Laboratorio","Radiologia","Rampa Marcador","2009-03-08",2009,"22:00 p.m.","Noche",1,null,null,null,null,null,"Caida","Rodilla","Pierna Izquierda","Emergencia 3 puntos"]
[28,"2009-03-16",null,"F",62,null,"Obstetricia","Profesional","Gineco Obstetricia","Planificacion Familiar","Planificacion Familiar","2009-03-16",2009,"8:00 a.m.","Dia",1,null,null,null,null,null,"Pinchadura","Indice","Mano Derecha","Medicina preventiva"]
[29,"2009-03-18",null,"F",37,null,"Tec. Enfermeria","Técnico","Gineco Obstetricia","Serv. \"C\"","Serv. \"C\"","2009-03-09",2009,"16:00 p.m.","Dia",1,null,null,null,null,null,"Corte","Medio","Mano Derecha","Medico Personal"]
[30,"2009-03-20",null,"F",25,"Interno","Int. Medicina","Estudiante","Gineco Obstetricia","C. Obstetrico","C. Obstetrico Amb.11","2009-03-20",2009,"22:00 p.m.","Noche",1,null,null,null,null,null,"Pinchadura","Pulgar","Mano Izquierda","Medicina preventiva","RPR,HIV"]
[31,"2009-03-27",null,"F",24,null,"Oper. Limpieza","Service Limpieza","Laboratorio","Laboratorio","Laboratorio","2009-03-17",2009,"10:00 a.m.","Dia",1,null,null,null,null,null,"Pinchadura","Medio","Mano Derecha","Medicina preventiva"]
[32,"2009-04-08",null,"F",50,null,"Tec. Enfermeria","Técnico","Neonatología","Neonatologia","Sala de Partos","2009-04-08",2009,"15:25 p.m.","Dia",1,null,null,null,null,null,"Pinchadura","Antebrazo","Derecho","Medicina preventiva"]
[33,"2009-04-13",null,"F",28,null,"Enfermeria","Profesional","Neonatología","Neonatologia","Intermedios","2009-04-13",2009,"12:30 p.m.","Dia",null,null,1,null,null,null,"Golpe","Espalda","Cuerpo","Medicina preventiva"]
[34,"2009-04-13",null,"F",44,null,"Tec. Enfermeria","Técnico","Neonatología","Neonatologia","Intermedios","2009-03-29",2009,"8:45 a.m.","Dia",null,null,1,null,null,null,"Golpe","Pierna","Derecho","Medicina preventiva"]
[35,"2009-04-20",null,"M",28,"Practicante","Biologo","Profesional","Laboratorio","Lab. Genetica","Aloj. Conj.- Serv. C","2009-04-20",2009,"13:00 p.m.","Dia",null,null,1,null,null,null,"Pinchadura","Pulgar","Mano Izquierda","Medicina preventiva"]
[36,"2009-04-22",null,"F",22,null,"Int. Obstetricia","Estudiante","Gineco Obstetricia","C. Obstetrico","C. Obstetrico","2009-04-22",2009,"9:45: a.m.","Dia",null,null,1,null,null,null,"Pinchadura","Pulgar","Mano Izquierda","Medicina preventiva"]
[37,"2009-04-28",null,"F",48,null,"Oper. Limpieza","Service Limpieza","Cons. Externos","C. Externos","C. Externos","2009-04-27",2009,"13:45 p.m.","Dia",1,null,null,null,null,null,"Pinchadura","Pierna","Lado Derecho","Medicina preventiva","RPR,HIV"]
[38,"2009-05-04",null,"F",63,null,"Tec. Enfermeria","Técnico","Neonatología","Aloj. Conjunto","Aloj. Conjunto","2009-05-02",2009,"7:00 a.m.","Dia",1,null,null,null,null,null,"Pinchadura","Medio","Mano derecha","Medicina Preventiva"]
[39,"2009-05-05",null,"M",39,null,"Med. Residente","Profesional","Neonatología","Neonatologia","UCIN \"A\"","2009-05-01",2009,"23:00p.m.","Dia",1,null,null,null,null,null,"Pinchadura","Indice","Mano Izquierda","Medicina Preventiva"]
[40,"2009-05-22",null,"F",55,null,"Tec. Enfermeria","Técnico","Gineco Obstetricia","Serv. \"D\"","Adolescencia","2009-03-06",2009,"9:00 a.m.","Dia",1,null,null,null,null,null,"Caida","Mano Izquierda","Miembro Superior","ESSALUD Almenara"]
[41,"2009-05-27",null,"M",37,null,"Oper. Residuos","Service Limpieza","Mantenimiento","Centro Acopio R.S.","Centro Acopio R.S.","2009-05-27",2009,"8:30 a.m.","Dia",1,null,null,null,null,null,"Pinchadura","Indice","Mano Derecha","Medicina Preventiva"]
[42,"2009-06-06",null,"M",28,null,"Med. Residente 1","Profesional","Gineco Obstetricia","Serv. \"E\"","C. Obstetrico","2009-06-06",2009,"11:00 p.m.","Noche",1,null,null,null,null,null,"Salpicadura","Salpicadura de Liquido Amniotico en cara","Cara","Medicina Preventiva","RPR,HIV"]
[43,"2009-06-07",null,"F",52,null,"Tec. Enfermeria","Técnico","Gineco Obstetricia","SOP","SOP","2009-06-07",2009,"9:30 a.m.","Dia",1,null,null,null,null,null,"Pinchadura","Anular","Mano Derecha","Medicina preventiva"]
[44,"2009-06-11",null,"F",26,null,"Enfermeria","Profesional","Neonatología","Uci Neonatal","Uci Neonatal","2009-06-11",2009,"13:30 p.m.","Dia",1,null,null,null,null,null,"Pinchadura","Indice","Mano Derecha","Medicina preventiva","Lamivudina/Zidovudina"]
[45,"2009-06-15",null,"F",25,"Interno","Int. Obstetricia","Estudiante","Gineco Obstetricia","Serv. \"D\"","Serv. \"D\"","2009-06-15",2009,"17:00 p.m.","Dia",1,null,null,null,null,null,"Pinchadura","Anular","Manoi Izquierda","Medicina preventiva"]
[46,"2009-06-27",null,"F",33,"Estudiante","Enfermeria","Estudiante","Gineco Obstetricia","Emergencia","Emergencia","2009-06-26",2009,"10:30 a.m.","Dia",1,null,null,null,null,null,"Pinchadura","Cara externa de Mano","Mano Derecha","Medicina Preventiva","RPR,HIV"]
[47,"2009-07-13",null,"M",20,null,"Oper. Limpieza","Service Limpieza","Mantenimiento","Reciclador","Centro Acopio R.S.","2009-07-13",2009,"09:30 a.m.","Dia",1,null,null,null,null,null,"Pinchadura","Medio","Mano Derecha","Medicina preventiva"]
[48,"2009-07-13",null,"F",27,"Interno","Int. Medicina","Estudiante","Gineco Obstetricia","SOP","SOP","2009-07-13",2009,"14:00 p.m.","Dia",1,null,null,null,null,null,"Pinchadura","Mano","Mano Derecha","Medicina preventiva"]
[49,"2009-07-13",null,"F",34,null,"Enfermeria","Profesional","Neonatología","Aloj. Conjunto","Pasadizo Serv. \"E\"","2009-07-13",2009,"17:00 p.m.","Dia",1,null,null,null,null,null,"Caida","Resbalo por usar zapato con taco. Cara, Brazo y Mano","Lado Izquierdo","Medicina preventiva"]
[50,"2009-07-20",null,"F",46,null,"Medico Pediatra","Profesional","Neonatología","Uci Neonatal","Uci Neonatal","2009-07-20",2009,"1:50 a.m","Dia",1,null,null,null,null,null,"Pinchadura","Indice","Mano Izquierda","Medicina preventiva"]
[51,"2009-07-23",null,"F",56,null,"Tec. Administrativo","Técnico","Estadistica","Admision","Escalera Gineco- C.Ext.","2009-07-23",2009,"09:30 a.m.","Dia",null,null,1,null,null,null,"Caida","Pierna, pie, Brazo, Mano","Lado Derecho","Medicina preventiva"]
[52,"2009-07-23",null,"F",62,null,"Tec. Enfermeria","Técnico","Gineco Obstetricia","Servicio \"E\"","Pasadizo Serv. \"E\"","2009-07-23",2009,"14:30 p.m.","Dia",null,null,1,null,null,null,"Caida","Espalda, Brazo, Mano, Pie","Lado Derecho","Medicina preventiva"]
[53,"2009-07-24",null,"F",23,"Interno","Int. Obstetricia","Estudiante","Gineco Obstetricia","C. Obstetrico","C. Obstetrico","2009-07-24",2009,"02:30 a.m.","Noche",1,null,null,null,null,null,"Pinchadura","Indice","Mano Izquierda","Medicina preventiva"]
[54,"2009-07-22",null,"F",23,null,"Tec. Administrativo","Técnico","Cons. Externos","Diagnostico por Imagen","Rampa Externa C.Ext.","2009-07-11",2009,"7:45 a.m.","Dia",null,null,1,null,null,null,"Caida","Espalda","Cuerpo","Medicina preventiva"]
[55,"2009-08-01",null,"M",43,null,"Medico","Profesional","Laboratorio","Banco de Sangre","Banco de Sangre","2009-08-01",2009,"11:10 a.m.","Dia",null,null,1,null,null,null,"Corte","Meñique","Mano Izquierda","Medicina preventiva"]
[56,"2009-08-03",null,"F",24,"Interno","Int. Medicina","Estudiante","Gineco Obstetricia","SOP","SOP","2009-08-03",2009,"13:40 p.m.","Dia",null,null,1,null,null,null,"Pinchadura","Anular","Mano Izquierda","Medicina preventiva"]
[57,"2009-08-18",null,"M",32,null,"Oper. Residuos","Service Limpieza","Mantenimiento","Centro Acopio R.S.","Centro Acopio R.S.","2009-08-18",2009,"7:50 a.m.","Dia",1,null,null,null,null,null,"Pinchadura","Medio","Mano Derecha","Medicina Preventiva"]
[58,"2009-08-21",null,"F",50,null,"Enfermeria","Profesional","Neonatología","Aten. Inmediata","SOP - A1","2009-08-21",2009,"11:00 a.m.","Dia",1,null,null,null,null,null,"Pinchadura","Pulgar","Mano Izquierda","Medicina preventiva"]
[59,"2009-08-28",null,"M",28,null,"Med. Residente","Profesional","Gineco Obstetricia","C. Obstetrico","C. Obstetrico","2009-08-27",2009,"18:00 a.m.","Dia",1,null,null,null,null,null,"Pinchadura","Medio","Mano Izquierda","Medicina preventiva"]
[60,"2009-09-14",null,"F",23,"Interno","Int. Medicina","Estudiante","Gineco Obstetricia","Serv. \"D\"","SOP","2009-09-14",2009,"10:00 A.M.","Dia",1,null,null,null,null,null,"Salpicadura","De sangre al Ojo Izquierdo","Cara","Medicina preventiva"]
[61,"2009-09-25",null,"M",41,null,"Medico Pediatra","Profesional","Neonatología","UCIN Intermedio","UCIN Intermedio","2009-09-25",2009,"8:00 a.m.","Dia",1,null,null,null,null,null,"Pinchadura","Mano","Mano Derecha","Medicina preventiva","RPR,HIV"]
[62,"2009-09-26",null,"F",23,"Interno","Int. Obstetricia","Estudiante","Gineco Obstetricia","C. Obstetrico","Sala de Partos","2009-09-24",2009,"1:10 a.m.","Noche",1,null,null,null,null,null,"Pinchadura","Medio","Mano Izquierda","Medicina preventiva","RPR,HIV"]
[63,"2009-09-29",null,"F",34,null,"Enfermeria","Profesional","Gineco Obstetricia","SOP","SOP","2009-09-22",2009,"01:00 a.m.","Noiche",1,null,null,null,null,null,"Salpicadura","Salpicadura al Ojo ","Ojo Derecho","Medicina preventiva"]

{"sheet":"Hoja3","index":1,"n_rows":115,"n_cols":7,"rows_kept":115,"cut":false,"hidden":false,"merged":[]}
["Cuenta de Tipo de Accidente","Año accidente"]
["Tipo de Accidente",2005,2006,2007,2008,2009,"Total general"]
["Caida",2,null,2,3,10,17]
["Caida/Corte",1,null,null,null,null,1]
["Contacto",null,null,null,null,1,1]
["Corriente",null,null,null,1,null,1]
["Corte",5,3,6,6,4,24]
["Golpe",null,null,null,null,2,2]
["Pinchadura",19,24,30,28,41,142]
["Ruido",null,null,null,null,1,1]
["Salpicadura",6,4,3,8,4,25]
["Total general",33,31,41,46,63,214]
[]
[]
[]
[]
[]
[]
[]
[]
["Cuenta de GO","Año accidente"]
["GO",2005,2006,2007,2008,2009,"Total general"]
["Estudiante",12,12,5,14,14,57]
["Profesional",10,11,16,18,25,80]
["Service Limpieza",6,2,7,5,7,27]
["Técnico",5,6,13,9,17,50]
["Total general",33,31,41,46,63,214]
[]
[]
[]
[]
[]
[]
[]
[]
[]
[]
[]
[]
[]
["Cuenta de Sexo","Año accidente"]
["Sexo",2005,2006,2007,2008,2009,"Total general"]
["F",25,29,32,33,47,166]
["M",8,2,9,13,16,48]
["Total general",33,31,41,46,63,214]
[]
[]
[]
[]
[]
[]
[]
[]
[]
[]
[]
[]
[]
[]
[]
["Cuenta de Turno","Año accidente"]
["Turno",2005,2006,2007,2008,2009,"Total general"]
["Dia",25,23,34,35,52,169]
["Noche",8,7,7,11,10,43]
["Noiche",null,null,null,null,1,1]
["(en blanco)"]
["Total general",33,30,41,46,63,213]
[]
[]
[]
[]
[]
[]
[]
[]
[]
[]
[]
[]
[]
["Cuenta de Departamento","Año accidente"]
["Departamento",2005,2006,2007,2008,2009,"Total general"]
["Administración",1,null,2,1,1,5]
["Clinica",null,null,1,null,null,1]
["Cons. Externos",null,null,1,1,2,4]
["Estadistica",null,null,null,null,1,1]
["Gineco Obstetricia",21,23,18,30,31,123]
["Laboratorio",4,2,3,3,6,18]
["Mantenimiento",1,null,1,null,5,7]
["Neonatología",6,6,13,11,17,53]
["Patologia",null,null,2,null,null,2]
["Total general",33,31,41,46,63,214]
[]
[]
[]
[]
[]
[]
[]
[]
["Cuenta de Fecha de reporte","Año accidente"]
["Fecha de reporte",2005,2006,2007,2008,2009,"Total general"]
["Ene",2,2,2,2,13,21]
["Feb",2,1,4,6,10,23]
["Mar",6,4,7,null,8,25]
["Abr",null,3,4,6,6,19]
["May",1,3,3,4,4,15]
["Jun",3,2,2,5,5,17]
["Jul",1,2,1,1,8,13]
["Ago",3,5,6,6,5,25]
["Sep",1,null,4,5,4,14]
["Oct",6,4,4,2,null,16]
["Nov",4,3,2,5,null,14]
["Dic",4,2,2,4,null,12]
["Total general",33,31,41,46,63,214]

{"sheet":"Hoja1","index":2,"n_rows":0,"n_cols":0,"rows_kept":0,"cut":false,"hidden":false,"merged":[]}

{"sheet":"Hoja4","index":3,"n_rows":0,"n_cols":0,"rows_kept":0,"cut":false,"hidden":false,"merged":[]}